Cogmind - Beta 12 @@@ ROGUE MODE // 2023.05.29 @ 00:38:35 Player: Mr Goldstein Result: Destroyed by B-99 Colossus with Multirail Performance ------------- Evolutions (8) 4000 Regions Visited (19) 3800 Robots Destroyed (32) 160 Value Destroyed (1310) 1310 Prototype IDs (17) 340 Alien Tech Used (8) 1600 Bonus (13613) 13613 TOTAL SCORE: 24823 Bonus ------- Pacifist 634 Triggered Max Security 1000 High Alert Combat Kills 381 Follower Combat Kills 2316 Met Data Miner 300 Built Enhanced Grunts 300 A7 Reached Mainframe 300 Met R17 at Cetus 500 Used Core Reset Matrix 3000 Integrated Exoskeleton 5000 Friendly Fire -118 Cogmind --------- Core Integrity 0/1450 Matter 92/300 Energy 194/200 System Corruption 5% Temperature Cool (0) Movement Walking (30) Location -2/Section 7 Parts ------- > --- POWER (1) -------- (None) > --- PROPULSION (3) --- Sigix Exoskeleton > --- UTILITY (3) ------ (None) > --- WEAPON (2) ------- Sigix Sheargun Sigix Sheargun > --- INVENTORY (5) ---- Improved Remote Datajack Peak State ------------ > --- POWER ------------ (None) > --- PROPULSION ------- Sigix Exoskeleton > --- UTILITY ---------- (None) > --- WEAPON ----------- Sigix Sheargun Sigix Sheargun > --- INVENTORY -------- Transdimensional Reconstructor High-powered Transdimensional Reconstructor Improved Remote Datajack [Rating: 178] Favorites ----------- Power Antimatter Reactor Power Core Light Nuclear Core Reactor Antimatter Reactor Propulsion VTOL Module Treads Light Treads Leg Improved Carbon-fiber Leg Wheel Armored Huge Wheel Flight Unit VTOL Module Utility Advanced Terrain Scan Processor Device Advanced Heat Sink Storage Large Storage Unit Processor Advanced Terrain Scan Processor Hackware Hacking Suite Protection Core Shielding Weapon Sigix Sheargun Energy Gun Sigix Sheargun Energy Cannon Neutron Cannon Ballistic Gun Advanced KE Penetrator Ballistic Cannon Heavy Flak Cannon Launcher Long-range Missile Launcher Special Weapon Remote Datajack Slashing Weapon Great Axe Special Melee Weapon Improved Datajack Build | -11 -10 -10 -10 -9 -8 -7 -7 -7 -7 -6 -6 -6 -6 -5 -4 -3 -2 -2 -2 ------- Run | Jun Mat Min Exi Min Mat Fac Low Low Dat Pro Fac Ext Cet Fac Fac Res Res Qua Sec Slots Evolved 16 | . . . . . 4 2 . . . . 2 . . 2 2 2 2 . . Power 1 | . . . . . . . . . . . . . . 1 . . . . . Propulsion 7 | . . . . . 2 1 . . . . 1 . . . 1 1 1 . . Utility 8 | . . . . . 2 1 . . . . 1 . . 1 1 1 1 . . Weapon . | . . . . . . . . . . . . . . . . . . . . Parts Attached 99 | . 2 . . . 2 8 . 4 . 2 11 11 25 5 1 9 5 8 6 Power 9 | . . . . . . . . 1 . . 1 . 3 . . . 3 . 1 Engine . | . . . . . . . . . . . . . . . . . . . . Core 3 | . . . . . . . . 1 . . 1 . 1 . . . . . . Reactor 6 | . . . . . . . . . . . . . 2 . . . 3 . 1 Propulsion 43 | . . . . . . 4 . 2 . . 6 6 10 1 . 4 1 6 3 Treads 9 | . . . . . . . . . . . . 6 3 . . . . . . Leg 2 | . . . . . . 2 . . . . . . . . . . . . . Wheel 1 | . . . . . . 1 . . . . . . . . . . . . . Hover . | . . . . . . . . . . . . . . . . . . . . Flight 31 | . . . . . . 1 . 2 . . 6 . 7 1 . 4 1 6 3 Utility 24 | . 2 . . . 2 3 . 1 . . 3 3 3 2 1 3 1 . . Device 2 | . . . . . . . . . . . . . 1 . 1 . . . . Storage 1 | . . . . . . . . . . . . . . . . 1 . . . Processor 8 | . . . . . 2 1 . . . . 1 1 . 2 . 1 . . . Hackware 6 | . . . . . . . . 1 . . 2 1 1 . . . 1 . . Protection 7 | . 2 . . . . 2 . . . . . 1 1 . . 1 . . . Artifact . | . . . . . . . . . . . . . . . . . . . . Weapon 23 | . . . . . . 1 . . . 2 1 2 9 2 . 2 . 2 2 Energy Gun 1 | . . . . . . . . . . . . . 1 . . . . . . Energy Cannon 1 | . . . . . . . . . . . . . 1 . . . . . . Ballistic Gun 2 | . . . . . . . . . . . . . 2 . . . . . . Ballistic Cannon 1 | . . . . . . . . . . . . 1 . . . . . . . Launcher 12 | . . . . . . . . . . 2 . . 4 1 . 2 . 1 2 Special Weapon 4 | . . . . . . . . . . . . 1 1 1 . . . 1 . Impact Weapon . | . . . . . . . . . . . . . . . . . . . . Slashing Weapon 1 | . . . . . . 1 . . . . . . . . . . . . . Piercing Weapon . | . . . . . . . . . . . . . . . . . . . . Special Melee Weapon 1 | . . . . . . . . . . . 1 . . . . . . . . Unidentified Prototypes 7 | . . . . . . . . . . . . . 5 . . 1 . 1 . Corrupted Parts 5 | . . . . . . . . . . . . . 5 . . . . . . System Corruption 25 | . . . . . . . . . . . . . 25 . . . . . . Parts Lost 41 | . . . . . . 2 . 1 . 1 6 2 . 2 . 3 3 10 11 Power 2 | . . . . . . . . . . . . . . . . . 1 . 1 Propulsion 29 | . . . . . . 1 . . . . 6 2 . 1 . 2 . 9 8 Utility 8 | . . . . . . 1 . 1 . . . . . 1 . 1 2 1 1 Weapon 2 | . . . . . . . . . . 1 . . . . . . . . 1 Highest Loss Streak 7 | . . . . . . 1 . 1 . 1 5 2 . 1 . 2 3 7 6 To Critical Strikes 1 | . . . . . . . . . . . . . . . . . . . 1 Average Slot Usage (%) 56 | . 28 28 28 28 21 45 38 51 61 61 60 57 70 73 67 66 73 60 32 Core 1 | . . . . . . . . 5 7 7 5 . . . . . . . . Reactor 1 | . . . . . . . . . . . . . . 5 5 4 4 4 . Treads 7 | . . . . . . . . . . . . 18 17 . . . . . . Flight 10 | . . . . . . 2 . 13 15 15 14 . 9 31 26 29 33 27 5 Processor 14 | . . . . . 3 18 23 23 23 23 24 17 11 10 14 9 13 13 7 Hackware 9 | . . . . . . . . . 7 7 7 15 20 12 10 6 6 8 2 Protection 7 | . 28 28 28 28 18 16 15 7 7 7 6 3 5 5 5 7 6 . . Naked Turns 3 | . 3 . . . . . . . . . . . . . . . . . . Heaviest Build 50 | . 2 2 2 2 2 6 2 6 6 13 7 8 24 24 24 46 50 49 40 Greatest Support 65 | 3 3 3 3 3 3 28 3 8 8 8 34 20 26 28 24 48 56 65 60 Greatest Overweight (x) 6 | . . . . . . 1 . . . 1 . 2 3 . . . . . 6 Average Overweight (x) . | . . . . . . . . . . . . . . . . . . . . Largest Inventory Capacity 15 | 5 5 5 5 5 5 5 5 5 5 5 5 5 5 5 5 15 15 15 15 Average Capacity 6 | 5 5 5 5 5 5 5 5 5 5 5 5 5 5 5 5 9 15 15 8 Most Carried 11 | . 2 2 3 3 5 5 5 5 5 5 5 5 5 5 5 6 8 11 10 Average Carried 4 | . 1 2 2 3 3 4 4 5 5 4 4 4 4 4 5 4 7 6 3 Final Capacity 15 | 5 5 5 5 5 5 5 5 5 5 5 5 5 5 5 5 15 15 15 5 Final Carried 10 | . 2 2 3 3 5 5 5 5 5 5 5 5 5 5 5 6 7 10 1 Class Distribution -------------------- 22% | Hacker-Mutant 19% | Scavenger-Sprinter 19% | Mutant 12% | Commander-Mutant 11% | Sprinter 5% | Hacker-Sprinter 3% | Scavenger-Mutant Dominant Class ---------------- Mutant | -10/Materials Mutant | -10/Mines Mutant | -10/Exiles Mutant | -9/Mines Mutant | -8/Materials Mutant | -7/Factory Mutant | -7/Lower Caves Sprinter | -7/Lower Caves Sprinter | -7/Data Miner Sprinter | -6/Proximity Caves Hacker-Mutant | -6/Factory Hacker-Mutant | -6/Extension Commander-Mutant | -6/Cetus Scavenger-Sprinter | -5/Factory Scavenger-Sprinter | -4/Factory Scavenger-Sprinter | -3/Research Scavenger-Sprinter | -2/Research Hacker-Sprinter | -2/Quarantine Alien-Sigix | -2/Section 7 Resources | -11 -10 -10 -10 -9 -8 -7 -7 -7 -7 -6 -6 -6 -6 -5 -4 -3 -2 -2 -2 ----------- Run | Jun Mat Min Exi Min Mat Fac Low Low Dat Pro Fac Ext Cet Fac Fac Res Res Qua Sec Matter Collected 1292 | 200 . 5 . . . 85 10 40 . 89 . 210 361 85 . 13 . 40 154 Remotely . | . . . . . . . . . . . . . . . . . . . . Salvage Created 746 | . . . . . . 106 . . . 99 . 87 38 42 . 44 . 112 218 Parts 58 | . . . . . . 6 . . . . . 4 3 5 . 4 . 7 29 Haulers Intercepted 2 | . . . . . . 2 . . . . . . . . . . . . . Recyclers Shooed . | . . . . . . . . . . . . . . . . . . . . Parts Field Recycled . | . . . . . . . . . . . . . . . . . . . . Retrieved Matter . | . . . . . . . . . . . . . . . . . . . . Parts Self-Destructed 5 | . . . . . . . . 2 . 3 . . . . . . . . . Prevented . | . . . . . . . . . . . . . . . . . . . . Kills | -11 -10 -10 -10 -9 -8 -7 -7 -7 -7 -6 -6 -6 -6 -5 -4 -3 -2 -2 -2 ------- Run | Jun Mat Min Exi Min Mat Fac Low Low Dat Pro Fac Ext Cet Fac Fac Res Res Qua Sec Combat Hostiles Destroyed 29 | . . . . . . . . . . 5 . 1 1 5 . 5 . 5 7 Guns 2 | . . . . . . . . . . . . . . . . . . . 2 Cannons 1 | . . . . . . . . . . . . 1 . . . . . . . AOE 26 | . . . . . . . . . . 5 . . 1 5 . 5 . 5 5 Classes Destroyed 7 | . . . . . . 1 . . . 2 . 2 1 . . . . . 1 Builder 1 | . . . . . . . . . . . . 1 . . . . . . . Hauler 2 | . . . . . . 2 . . . . . . . . . . . . . Swarmer 23 | . . . . . . . . . . 3 . . . 5 . 5 . 5 5 Grunt 2 | . . . . . . . . . . 2 . . . . . . . . . Sentry 1 | . . . . . . . . . . . . 1 . . . . . . . Hunter 1 | . . . . . . . . . . . . . 1 . . . . . . Programmer 2 | . . . . . . . . . . . . . . . . . . . 2 Best Kill Streak 5 | . . . . . . 2 . . . 3 . 1 1 5 . 5 . 5 5 Combat Bots Only 5 | . . . . . . . . . . 3 . 1 1 5 . 5 . 5 5 Max Kills in Single Turn 3 | . . . . . . 1 . . . 3 . 1 1 2 . 2 . 3 3 Gunslinging . | . . . . . . . . . . . . . . . . . . . . Exploded 3 | . . . . . . . . . . 3 . . 1 2 . 2 . 3 3 Melee . | . . . . . . . . . . . . . . . . . . . . Uniques/NPCs Destroyed . | . . . . . . . . . . . . . . . . . . . . Combat | -11 -10 -10 -10 -9 -8 -7 -7 -7 -7 -6 -6 -6 -6 -5 -4 -3 -2 -2 -2 -------- Run | Jun Mat Min Exi Min Mat Fac Low Low Dat Pro Fac Ext Cet Fac Fac Res Res Qua Sec Damage Taken 6398 | . 40 121 . 3 77 513 132 17 . 98 534 765 101 356 64 356 417 950 1854 Core 2853 | . 32 98 . 2 64 296 107 14 . 14 294 494 . 78 . 94 72 286 908 Absorbed by Shields 152 | . . . . . . . . . . . . 64 20 5 . . . 63 . Redirected to Shielding 291 | . 8 18 . . 13 65 25 3 . 3 41 2 . . . 52 61 . . Core Remaining (%) 70 | 100 . . . 47 88 . . . . 38 . . 7 92 100 92 . . . Volleys Fired 39 | . . . . . . . . . . 5 . 7 8 3 . 4 . 5 7 Largest 2 | . . . . . . . . . . 1 . 1 2 1 . 1 . 1 2 Hottest 240 | . . . . . . . . . . 39 . 53 240 43 . 43 . 43 200 Shots Fired 46 | . . . . . . . . . . 5 . 7 9 3 . 4 . 5 13 Gun 12 | . . . . . . . . . . . . . 1 . . . . . 11 Cannon 7 | . . . . . . . . . . . . 5 2 . . . . . . Launcher 22 | . . . . . . . . . . 5 . . 5 3 . 4 . 3 2 Special 5 | . . . . . . . . . . . . 2 1 . . . . 2 . Kinetic 5 | . . . . . . . . . . . . 5 . . . . . . . Thermal 5 | . . . . . . . . . . . . . 3 . . . . 2 . Explosive 22 | . . . . . . . . . . 5 . . 5 3 . 4 . 3 2 Electromagnetic . | . . . . . . . . . . . . . . . . . . . . Slashing 11 | . . . . . . . . . . . . . . . . . . . 11 Robot Hit Streak 8 | . . . . . . . . . . 2 . 6 2 4 . 1 . 3 8 Robot Miss Streak 6 | . . . . . . . . . . 1 . 6 1 . . 2 . . . Penetration Max 1 | . . . . . . . . . . . . . . . . . . . 1 Secondary Targets . | . . . . . . . . . . . . . . . . . . . . Shots Hit Robots 23 | . . . . . . 2 . . . 3 . 6 2 2 . 1 . 2 5 Core Hits 52 | . . 1 . . . 2 . . . 8 . 7 6 4 . 8 . 6 10 Critical Kills . | . . . . . . . . . . . . . . . . . . . . Critical Parts Destroyed . | . . . . . . . . . . . . . . . . . . . . Critical Strikes . | . . . . . . . . . . . . . . . . . . . . Melee Attacks 3 | . . . . . . 3 . . . . . . . . . . . . . Impact . | . . . . . . . . . . . . . . . . . . . . Slashing 3 | . . . . . . 3 . . . . . . . . . . . . . Piercing . | . . . . . . . . . . . . . . . . . . . . Sneak Attacks 2 | . . . . . . 2 . . . . . . . . . . . . . Combat Hostiles . | . . . . . . . . . . . . . . . . . . . . Follow-up Attacks . | . . . . . . . . . . . . . . . . . . . . Damage Inflicted 3750 | . . 13 . 6 1 145 . . . 547 . 167 644 525 . 623 . 363 716 Guns 241 | . . . . . . . . . . . . . . . . . . . 241 Cannons 127 | . . . . . . . . . . . . 127 . . . . . . . Explosions 3177 | . . . . . . . . . . 547 . . 644 525 . 623 . 363 475 Melee 145 | . . . . . . 145 . . . . . . . . . . . . . Ramming 60 | . . 13 . 6 1 . . . . . . 40 . . . . . . . Kinetic 127 | . . . . . . . . . . . . 127 . . . . . . . Thermal . | . . . . . . . . . . . . . . . . . . . . Explosive 3177 | . . . . . . . . . . 547 . . 644 525 . 623 . 363 475 Electromagnetic . | . . . . . . . . . . . . . . . . . . . . Impact . | . . . . . . . . . . . . . . . . . . . . Slashing 386 | . . . . . . 145 . . . . . . . . . . . . 241 Piercing . | . . . . . . . . . . . . . . . . . . . . Highest Corruption 25 | . . . . . . . 1 1 1 1 . . 25 1 2 . 2 3 5 Average Corruption 5 | . . . . . . . 1 1 1 1 . . 12 1 1 . 2 2 4 Corruption Purged . | . . . . . . . . . . . . . . . . . . . . Corruption Blocked . | . . . . . . . . . . . . . . . . . . . . Effects 44 | . . . . . . . . 1 . 4 . . 28 . 2 . 1 1 7 Message Errors 16 | . . . . . . . . . . 2 . . 8 . . . 1 1 4 Matter Fused 6 | . . . . . . . . . . 2 . . 4 . . . . . . Heat Flow Errors 6 | . . . . . . . . . . . . . 4 . 1 . . . 1 Energy Discharges 6 | . . . . . . . . . . . . . 5 . 1 . . . . Data Loss (minor) 5 | . . . . . . . . 1 . . . . 3 . . . . . 1 Data Loss (major) 2 | . . . . . . . . . . . . . 2 . . . . . . Misfires 1 | . . . . . . . . . . . . . . . . . . . 1 Alerts 2 | . . . . . . . . . . . . . 2 . . . . . . Overload Shots 1 | . . . . . . . . . . . . . 1 . . . . . . Overflow Damage 71 | . . . . . . . . . . . . . 6 53 . 12 . . . Projectiles . | . . . . . . . . . . . . . . . . . . . . Explosions 71 | . . . . . . . . . . . . . 6 53 . 12 . . . Melee . | . . . . . . . . . . . . . . . . . . . . Knockbacks 1 | . . . . 1 . . . . . . . . . . . . . . . Impact 1 | . . . . 1 . . . . . . . . . . . . . . . Kinetic . | . . . . . . . . . . . . . . . . . . . . Secondary . | . . . . . . . . . . . . . . . . . . . . Self-Inflicted Damage 76 | . . 5 . 3 . . . . . . . 15 . 22 . . . 31 . Shots 2 | . . . . . . . . . . . . . . 1 . . . 1 . Rammed 18 | . . 5 . 2 1 . . . . . . 10 . . . . . . . Targets Rammed 18 | . . 5 . 2 1 . . . . . . 10 . . . . . . . Kicked . | . . . . . . . . . . . . . . . . . . . . Crushed . | . . . . . . . . . . . . . . . . . . . . Highest Temperature 257 | . . . . . . . . . . . 48 1 257 6 125 . 153 . . Average Temperature 71 | . . . . . . . . . . . 24 1 86 6 65 . 58 . . Received Heat Transfer 766 | . 24 . . . 18 120 21 . . . 105 208 9 60 9 18 45 111 18 Siege Activations . | . . . . . . . . . . . . . . . . . . . . Robots Corrupted . | . . . . . . . . . . . . . . . . . . . . Combat Hostiles . | . . . . . . . . . . . . . . . . . . . . Parts Fried . | . . . . . . . . . . . . . . . . . . . . Impact Corruptions . | . . . . . . . . . . . . . . . . . . . . Robots Melted . | . . . . . . . . . . . . . . . . . . . . Combat Hostiles . | . . . . . . . . . . . . . . . . . . . . Parts Melted . | . . . . . . . . . . . . . . . . . . . . Heat Transferred . | . . . . . . . . . . . . . . . . . . . . Parts Sabotaged . | . . . . . . . . . . . . . . . . . . . . Parts Stolen . | . . . . . . . . . . . . . . . . . . . . Parts Stripped . | . . . . . . . . . . . . . . . . . . . . Power Chain Reactions 1 | . . . . . . . . . . . 1 . . . . . . . . Missiles Intercepted . | . . . . . . . . . . . . . . . . . . . . Alert | -11 -10 -10 -10 -9 -8 -7 -7 -7 -7 -6 -6 -6 -6 -5 -4 -3 -2 -2 -2 ------- Run | Jun Mat Min Exi Min Mat Fac Low Low Dat Pro Fac Ext Cet Fac Fac Res Res Qua Sec Peak Influence 1803 | . 30 86 . . 30 239 . . . . 509 723 1362 1419 858 1024 656 885 1803 Initial 762 | . . 11 . . . 13 . . . . 101 249 341 762 695 450 491 369 492 Average 597 | . 23 26 . . 19 112 . . . . 382 404 975 1056 793 724 537 674 1067 Maximum Alert Level 5 | . . . . . . 1 . . . . 2 3 4 4 3 3 2 3 5 Low Security (%) 20 | 100 100 100 . 100 100 92 . . . . 8 16 . . . . . . . Level 1 15 | . . . . . . 7 . . . . 51 37 4 . . . . 14 . Level 2 26 | . . . . . . . . . . . 40 43 2 . 3 47 100 20 56 Level 3 26 | . . . . . . . . . . . . 2 61 71 96 52 . 64 . Level 4 6 | . . . . . . . . . . . . . 30 28 . . . . . Level 5 . | . . . . . . . . . . . . . . . . . . . . High Security . | . . . . . . . . . . . . . . . . . . . . Max Security 3 | . . . . . . . . . . . . . . . . . . . 43 Squads Dispatched 36 | . 1 . . . . 4 . . . . 4 1 1 3 2 4 2 1 13 Investigation 17 | . 1 . . . . 3 . . . . 2 . 1 2 2 4 1 1 . Extermination . | . . . . . . . . . . . . . . . . . . . . Reinforcement 7 | . . . . . . 1 . . . . 2 1 . 1 . . 1 . 1 Assault 12 | . . . . . . . . . . . . . . . . . . . 12 Garrison . | . . . . . . . . . . . . . . . . . . . . Intercept . | . . . . . . . . . . . . . . . . . . . . Searches Triggered 1 | . . . . . . . . . . . . . . . . 1 . . . Data Miner Redirects 5 | . . . . . . . . . . . 2 . . 1 1 1 . . . Construction Impeded . | . . . . . . . . . . . . . . . . . . . . Haulers Reinforced . | . . . . . . . . . . . . . . . . . . . . Active Scanning Responses . | . . . . . . . . . . . . . . . . . . . . Cargo Convoy Interrupts . | . . . . . . . . . . . . . . . . . . . . Stealth | -11 -10 -10 -10 -9 -8 -7 -7 -7 -7 -6 -6 -6 -6 -5 -4 -3 -2 -2 -2 --------- Run | Jun Mat Min Exi Min Mat Fac Low Low Dat Pro Fac Ext Cet Fac Fac Res Res Qua Sec Distress Signals 12 | . . . . . . . . . . . 1 3 2 1 1 . 1 . 3 Communications Jammed . | . . . . . . . . . . . . . . . . . . . . Distress Signals . | . . . . . . . . . . . . . . . . . . . . Times Spotted 263 | . 2 5 . . 2 13 5 3 . 11 13 28 23 35 10 26 23 23 41 Peak Tracking Total 18 | . 2 3 . . 2 7 3 3 . 4 8 6 9 10 5 13 18 15 14 Tactical Retreats 28 | . . 2 . . . 2 2 . . 1 2 2 1 2 2 4 3 3 2 Traps | -11 -10 -10 -10 -9 -8 -7 -7 -7 -7 -6 -6 -6 -6 -5 -4 -3 -2 -2 -2 ------- Run | Jun Mat Min Exi Min Mat Fac Low Low Dat Pro Fac Ext Cet Fac Fac Res Res Qua Sec Traps Triggered 14 | . . . . . . 2 . . . . . 5 . 3 1 1 . 2 . Indirectly . | . . . . . . . . . . . . . . . . . . . . Trap Hack Attempts . | . . . . . . . . . . . . . . . . . . . . Triggered . | . . . . . . . . . . . . . . . . . . . . Disarmed . | . . . . . . . . . . . . . . . . . . . . Reprogrammed . | . . . . . . . . . . . . . . . . . . . . Reused . | . . . . . . . . . . . . . . . . . . . . Traps Extracted . | . . . . . . . . . . . . . . . . . . . . Installed . | . . . . . . . . . . . . . . . . . . . . Triggered 1 | . . . . . . . . 1 . . . . . . . . . . . Machines | -11 -10 -10 -10 -9 -8 -7 -7 -7 -7 -6 -6 -6 -6 -5 -4 -3 -2 -2 -2 ---------- Run | Jun Mat Min Exi Min Mat Fac Low Low Dat Pro Fac Ext Cet Fac Fac Res Res Qua Sec Machines Disabled 9 | . . . . . . . . . . . . 2 1 2 . . . 2 2 Max in Single Turn 2 | . . . . . . . . . . . . . . . . . . 2 2 Garrison Access 5 | . . . . . . 2 . . . . 1 . . . . 1 . 1 . Machines Repaired . | . . . . . . . . . . . . . . . . . . . . Machines Sabotaged . | . . . . . . . . . . . . . . . . . . . . Overloaded Fab Kills . | . . . . . . . . . . . . . . . . . . . . Hacking | -11 -10 -10 -10 -9 -8 -7 -7 -7 -7 -6 -6 -6 -6 -5 -4 -3 -2 -2 -2 --------- Run | Jun Mat Min Exi Min Mat Fac Low Low Dat Pro Fac Ext Cet Fac Fac Res Res Qua Sec Machines Accessed 57 | . 1 . 1 . . 8 . . 3 . 4 4 1 3 7 9 3 10 3 Terminals 40 | . . . . . . 3 . . . . 2 4 1 3 5 8 2 9 3 Fabricators 5 | . . . . . . 2 . . . . 1 . . . 2 . . . . Repair Stations . | . . . . . . . . . . . . . . . . . . . . Recycling Units 2 | . 1 . . . . 1 . . . . . . . . . . . . . Scanalyzers . | . . . . . . . . . . . . . . . . . . . . Garrison Access 6 | . . . . . . 2 . . . . 1 . . . . 1 1 1 . Total Hacks 124 | . 1 . 1 . . 19 . . 21 . 5 7 3 8 13 16 5 19 6 Successful 66 | . 1 . 1 . . 11 . . 21 . 4 2 . 3 6 5 1 8 3 Failed 58 | . . . . . . 8 . . . . 1 5 3 5 7 11 4 11 3 Catastrophic 17 | . . . . . . 2 . . . . . 2 . 1 1 4 2 5 . Database Lockouts . | . . . . . . . . . . . . . . . . . . . . Manual 42 | . 1 . . . . 7 . . . . 4 . 1 7 7 6 2 7 . Terminals 80 | . . . . . . 8 . . . . 2 7 3 8 9 15 4 18 6 Fabricators 13 | . . . . . . 7 . . . . 2 . . . 4 . . . . Repair Stations . | . . . . . . . . . . . . . . . . . . . . Recycling Units 2 | . 1 . . . . 1 . . . . . . . . . . . . . Scanalyzers . | . . . . . . . . . . . . . . . . . . . . Garrison Access 7 | . . . . . . 3 . . . . 1 . . . . 1 1 1 . Terminal Hacks 49 | . . . 1 . . 4 . . 21 . 2 2 . 2 3 3 1 7 3 Record 5 | . . . 1 . . . . . 2 . . . . . . . . 2 . Part Schematic 10 | . . . . . . . . . 10 . . . . . . . . . . Robot Schematic 6 | . . . . . . . . . 6 . . . . . . . . . . Robot Analysis 1 | . . . . . . . . . . . . . . 1 . . . . . Prototype ID Bank 3 | . . . . . . . . . 3 . . . . . . . . . . Open Door 5 | . . . . . . . . . . . 1 . . . . . . 1 3 Level Access Points 2 | . . . . . . . . . . . . . . 1 1 . . . . Branch Access Points 5 | . . . . . . 1 . . . . 1 . . . 1 1 1 . . Emergency Access Points 2 | . . . . . . 1 . . . . . . . . . . . 1 . Locate Traps 1 | . . . . . . 1 . . . . . . . . . . . . . Hauler Manifests 1 | . . . . . . . . . . . . . . . . 1 . . . Registered Components 2 | . . . . . . 1 . . . . . . . . 1 . . . . Zone Layout 6 | . . . . . . . . . . . . 2 . . . 1 . 3 . Fabricator Hacks 5 | . . . . . . 2 . . . . . . . . 3 . . . . Network Status 2 | . . . . . . 1 . . . . . . . . 1 . . . . Load Schematic 1 | . . . . . . . . . . . . . . . 1 . . . . Build 2 | . . . . . . 1 . . . . . . . . 1 . . . . Repair Station Hacks . | . . . . . . . . . . . . . . . . . . . . Recycling Unit Hacks . | . . . . . . . . . . . . . . . . . . . . Scanalyzer . | . . . . . . . . . . . . . . . . . . . . Garrison Access Hacks 4 | . . . . . . 2 . . . . . . . . . 1 . 1 . Seal Access 4 | . . . . . . 2 . . . . . . . . . 1 . 1 . Unauthorized Hacks 8 | . 1 . . . . 3 . . . . 2 . . 1 . 1 . . . Terminals 3 | . . . . . . 1 . . . . . . . 1 . 1 . . . Track 1 | . . . . . . . . . . . . . . . . 1 . . . Assimilate 1 | . . . . . . . . . . . . . . 1 . . . . . Botnet 1 | . . . . . . 1 . . . . . . . . . . . . . Fabricators 2 | . . . . . . 1 . . . . 1 . . . . . . . . Liberate 1 | . . . . . . 1 . . . . . . . . . . . . . Overload 1 | . . . . . . . . . . . 1 . . . . . . . . Repair Stations . | . . . . . . . . . . . . . . . . . . . . Recycling Units 2 | . 1 . . . . 1 . . . . . . . . . . . . . Tunnel 2 | . 1 . . . . 1 . . . . . . . . . . . . . Scanalyzers . | . . . . . . . . . . . . . . . . . . . . Garrison Access 1 | . . . . . . . . . . . 1 . . . . . . . . Jam 1 | . . . . . . . . . . . 1 . . . . . . . . Data Cores Recovered . | . . . . . . . . . . . . . . . . . . . . Used . | . . . . . . . . . . . . . . . . . . . . Hacking Detections 33 | . . . . . . 4 . . . . . 3 2 2 5 7 3 7 . Full Trace Events 12 | . . . . . . 2 . . . . . . 1 1 2 4 1 1 . Feedback Events 2 | . . . . . . . . . . . . . . 1 . 1 . . . Corruption 1 | . . . . . . . . . . . . . . 1 . . . . . Hackware Fried 1 | . . . . . . . . . . . . . . . . 1 . . . Feedback Blocked . | . . . . . . . . . . . . . . . . . . . . Robot Schematics Acquired 6 | . . . . . . . . . 6 . . . . . . . . . . Robots Built 3 | . . . . . . 3 . . . . . . . . . . . . . Authchips . | . . . . . . . . . . . . . . . . . . . . Time 116 | . . . . . . 116 . . . . . . . . . . . . . Total Robot Build Rating 9 | . . . . . . 9 . . . . . . . . . . . . . Part Schematics Acquired 10 | . . . . . . . . . 10 . . . . . . . . . . Parts Built 1 | . . . . . . . . . . . . . . . 1 . . . . Authchips . | . . . . . . . . . . . . . . . . . . . . Time 169 | . . . . . . . . . . . . . . . 169 . . . . Total Part Build Rating 6 | . . . . . . . . . . . . . . . 6 . . . . Parts Repaired . | . . . . . . . . . . . . . . . . . . . . Time . | . . . . . . . . . . . . . . . . . . . . Parts Recycled . | . . . . . . . . . . . . . . . . . . . . Recycled Matter . | . . . . . . . . . . . . . . . . . . . . Retrieved Matter . | . . . . . . . . . . . . . . . . . . . . Retrieved Components . | . . . . . . . . . . . . . . . . . . . . Parts Scanalyzed . | . . . . . . . . . . . . . . . . . . . . Part Schematics Acquired . | . . . . . . . . . . . . . . . . . . . . Parts Damaged . | . . . . . . . . . . . . . . . . . . . . Bothacking | -11 -10 -10 -10 -9 -8 -7 -7 -7 -7 -6 -6 -6 -6 -5 -4 -3 -2 -2 -2 ------------ Run | Jun Mat Min Exi Min Mat Fac Low Low Dat Pro Fac Ext Cet Fac Fac Res Res Qua Sec Used RIF Installer . | . . . . . . . . . . . . . . . . . . . . Robots Hacked 2 | . . . . . . . . . . . . 2 . . . . . . . Non-combat . | . . . . . . . . . . . . . . . . . . . . Combat . | . . . . . . . . . . . . . . . . . . . . Robot Hacks Applied . | . . . . . . . . . . . . . . . . . . . . Manual 2 | . . . . . . . . . . . . 2 . . . . . . . Relay Couplers Released 4 | . . . . . . 4 . . . . . . . . . . . . . Machine Destruction 4 | . . . . . . 4 . . . . . . . . . . . . . Fabnet Peak Effective % . | . . . . . . . . . . . . . . . . . . . . Robots Rewired 11 | . . . . . . . . . . . . 10 1 . . . . . . Allies Hacked . | . . . . . . . . . . . . . . . . . . . . Hacks Repelled . | . . . . . . . . . . . . . . . . . . . . Allies | -11 -10 -10 -10 -9 -8 -7 -7 -7 -7 -6 -6 -6 -6 -5 -4 -3 -2 -2 -2 -------- Run | Jun Mat Min Exi Min Mat Fac Low Low Dat Pro Fac Ext Cet Fac Fac Res Res Qua Sec Total Allies 40 | . . . . . . 6 . . . 1 . 27 6 . . . . . . Largest Group 18 | . . . . . . 3 . . . 1 . 18 18 12 . . . . . Highest-Rated Group 896 | . . . . . . 93 . . . 96 . 726 896 695 . . . . . Highest-Rated Ally 159 | . . . . . . 31 . . . 96 . 159 159 153 . . . . . Total Orders . | . . . . . . . . . . . . . . . . . . . . Ally Attacks 390 | . . . . . . 28 . . . 11 . 149 136 66 . . . . . Total Damage 10299 | . . . . . . 529 . . . 183 . 3283 4162 2142 . . . . . Kills 79 | . . . . . . 5 . . . 1 . 25 32 16 . . . . . Allies Corrupted . | . . . . . . . . . . . . . . . . . . . . Allies Melted . | . . . . . . . . . . . . . . . . . . . . Intel | -11 -10 -10 -10 -9 -8 -7 -7 -7 -7 -6 -6 -6 -6 -5 -4 -3 -2 -2 -2 ------- Run | Jun Mat Min Exi Min Mat Fac Low Low Dat Pro Fac Ext Cet Fac Fac Res Res Qua Sec Robot Analysis Total 1 | . . . . . . . . . . . . . . 1 . . . . . Derelict Logs Recovered 5 | . . 1 . . . . 1 2 . 1 . . . . . . . . . Drone Launches . | . . . . . . . . . . . . . . . . . . . . Drone Recoveries . | . . . . . . . . . . . . . . . . . . . . Exploration | -11 -10 -10 -10 -9 -8 -7 -7 -7 -7 -6 -6 -6 -6 -5 -4 -3 -2 -2 -2 ------------- Run | Jun Mat Min Exi Min Mat Fac Low Low Dat Pro Fac Ext Cet Fac Fac Res Res Qua Sec Turns Passed 4788 | 13 46 91 73 21 57 405 127 163 25 298 178 1241 671 239 226 250 112 221 331 Spaces Moved 8625 | 25 81 172 143 37 102 705 250 465 77 403 397 853 572 701 623 943 544 736 796 Core 2367 | 25 81 172 143 37 102 506 250 42 . . . 575 296 . . . . . 138 Treads 235 | . . . . . . . . . . . . 235 . . . . . . . Legs 409 | . . . . . . 1 . . . . . . . . . . . . 408 Wheels 3 | . . . . . . 3 . . . . . . . . . . . . . Hover . | . . . . . . . . . . . . . . . . . . . . Flight 5611 | . . . . . . 195 . 423 77 403 397 43 276 701 623 943 544 736 250 Fastest Speed 17 | 50 50 50 50 50 50 40 50 32 32 32 24 34 20 20 25 20 17 20 29 Average Speed 38 | 50 50 50 50 50 50 48 50 33 32 32 32 86 48 22 25 21 18 24 34 Slowest Speed 350 | 50 50 50 50 50 50 120 50 50 32 112 35 160 200 25 25 27 20 29 350 Overloaded Moves . | . . . . . . . . . . . . . . . . . . . . Propulsion Burnouts . | . . . . . . . . . . . . . . . . . . . . Robots Hopped 55 | . . . . . . 3 . . . . 7 2 . 8 4 7 15 8 1 Cave-ins Triggered . | . . . . . . . . . . . . . . . . . . . . Teleports 6 | . . . . . . . . . . . . . . . . . . . 6 Exploration Rate (%) 41 | 4 24 35 50 17 22 25 49 72 68 51 19 92 73 18 14 35 20 88 62 Regions Visited 19 Branch Regions 11 Pre-discovered Areas 5 | . 1 . 1 . . 1 1 . 1 . . . . . . . . . . Known Exits Taken 8 | . . . . . . 1 . . . . 1 1 1 1 1 . 1 1 . Unknown Exits Taken 11 | 1 1 1 1 1 1 . 1 1 1 1 . . . . . 1 . . . Scrap Searched 11 | . . 1 . . . . 2 4 . 4 . . . . . . . . . Spaces Dug 43 | . . . . . . 1 . . . 9 . . 17 5 . 10 . . 1 Terrain Destroyed 248 | . . . . . . 1 . . . 31 . . 97 19 . 42 . 35 23 Melee 1 | . . . . . . 1 . . . . . . . . . . . . . Projectile 3 | . . . . . . . . . . . . . 1 . . . . . 2 AOE 244 | . . . . . . . . . . 31 . . 96 19 . 42 . 35 21 Terrain Rammed . | . . . . . . . . . . . . . . . . . . . . Walls Destroyed . | . . . . . . . . . . . . . . . . . . . . Machines Disabled . | . . . . . . . . . . . . . . . . . . . . Actions | -11 -10 -10 -10 -9 -8 -7 -7 -7 -7 -6 -6 -6 -6 -5 -4 -3 -2 -2 -2 --------- Run | Jun Mat Min Exi Min Mat Fac Low Low Dat Pro Fac Ext Cet Fac Fac Res Res Qua Sec Total 10000 | 24 84 176 143 38 106 755 251 468 76 565 439 1347 957 775 688 972 536 762 838 Wait 1013 | . . . . . . 36 . . . 154 28 335 330 48 67 1 . 1 13 Move 8498 | 24 80 171 142 36 101 698 249 464 76 402 382 848 571 684 614 929 514 719 794 Hop 53 | . . . . . . 3 . . . . 7 2 . 8 4 6 14 8 1 Pick Up 37 | . 2 . 1 . 2 2 1 . . 1 5 1 1 3 . 3 1 11 3 Fast Attach 66 | . 2 . . . 2 6 . 4 . . 7 10 18 2 1 6 2 1 5 Attach 42 | . . . . . . 1 . . . 2 4 1 6 2 . 3 3 8 12 Detach 15 | . . . . . . . . . . 1 1 1 5 2 . 1 2 1 1 Swap 3 | . . . . . . 1 . . . . . . 1 1 . . . . . Drop 45 | . . . . . . 5 1 . . . 5 6 17 5 2 1 . 1 2 Fire 39 | . . . . . . . . . . 5 . 7 8 3 . 4 . 5 7 Melee 3 | . . . . . . 3 . . . . . . . . . . . . . Ram 16 | . . 5 . 2 1 . . . . . . 8 . . . . . . . Kick . | . . . . . . . . . . . . . . . . . . . . Crush 2 | . . . . . . . . . . . . 2 . . . . . . . Escape Stasis 110 | . . . . . . . . . . . . 68 . 17 . 18 . 7 . Rewire 58 | . . . . . . . . . . . . 58 . . . . . . . Trap . | . . . . . . . . . . . . . . . . . . . . Miscellaneous . | . . . . . . . . . . . . . . . . . . . . Route ------- -11/Junkyard -10/Materials (discovered 2 exits: [*Min x2]) -10/Mines (discovered 2 exits: Mat / *Exi) -10/Exiles (discovered 2 exits: [*Min x2]) -9/Mines -8/Materials -7/Factory (discovered 2 exits: *Low x2) -7/Lower Caves -7/Lower Caves -7/Data Miner -6/Proximity Caves -6/Factory (discovered 4 exits: *Low x2 / *Ext x2) -6/Extension (discovered 2 exits: *Fac / *Cet) -6/Cetus (discovered 2 exits: *Fac / *Arc) -5/Factory (discovered 4 exits: *Fac x4) -4/Factory (discovered 6 exits: *Res x4 / Upp x2) -3/Research (discovered 4 exits: *Res / Arm / Tes x2) -2/Research (discovered 2 exits: *Qua x2) -2/Quarantine (discovered 2 exits: [*Acc] / *Sec) -2/Section 7 (discovered 1 exit: [*Acc]) History --------- Turn | Location | Event 2 | -11/Junkyard | Discovered new exit (range 16) 14 | -11/Junkyard | Entered Materials 45 | -10/Materials | Discovered new exit (range 5) 53 | -10/Materials | Discovered new exit (range 12) 60 | -10/Materials | Entered Mines 64 | -10/Mines | Identified exit to Materials 120 | -10/Mines | Assembled infested the area 133 | -10/Mines | Core integrity fell below 50% 149 | -10/Mines | Discovered new exit (range 5) 151 | -10/Mines | Entered Exiles 159 | -10/Exiles | Discovered new exit (range 15) 165 | -10/Exiles | Met 8R-AWN 171 | -10/Exiles | Met EX-HEX 192 | -10/Exiles | Met EX-DEC 195 | -10/Exiles | Learned location of Zion (-6) 218 | -10/Exiles | Discovered new exit (range 14) 224 | -10/Exiles | Entered Mines 241 | -9/Mines | Discovered new exit (range 6) 245 | -9/Mines | Entered Materials 245 | -8/Materials | Evolved 4 slots: Propulsion x2, Utility x2 288 | -8/Materials | Discovered new exit (range 5) 302 | -8/Materials | Entered Factory 302 | -7/Factory | Evolved 2 slots: Propulsion x1, Utility x1 316 | -7/Factory | Build established: Mutant 458 | -7/Factory | Allied Derelicts emerged from ambush trap array 532 | -7/Factory | Identified exit to Lower Caves 612 | -7/Factory | Fabricated C-17 Slicer? 707 | -7/Factory | Entered Lower Caves 810 | -7/Lower Caves | Spotted B-75 Beast 813 | -7/Lower Caves | Core integrity fell below 50% 830 | -7/Lower Caves | Discovered new exit (range 9) 834 | -7/Lower Caves | Entered another Lower Caves area 835 | -7/Lower Caves | Encountered a Warlord checkpoint 923 | -7/Lower Caves | Learned Factory emergency access door positions 993 | -7/Lower Caves | Discovered new exit (range 11) 997 | -7/Lower Caves | Entered Data Miner 997 | -7/Data Miner | Discovered new exit (range 6) 1004 | -7/Data Miner | Met Data Miner 1009 | -7/Data Miner | Learned location of Section 7 (-2) 1009 | -7/Data Miner | Acquired the access code to Warlord's prototype stash 1013 | -7/Data Miner | Received God Mode back door access code from Data Miner 1022 | -7/Data Miner | Entered Proximity Caves 1086 | -6/Proximity Caves | Learned Factory stockpile data 1157 | -6/Proximity Caves | Build established: Sprinter 1189 | -6/Proximity Caves | Escorted by Enhanced Grunt 1248 | -6/Proximity Caves | Received a Behemoth hack from an annoying Tinkerer 1316 | -6/Proximity Caves | Spotted B-75 Beast 1318 | -6/Proximity Caves | Discovered new exit (range 8) 1320 | -6/Proximity Caves | Entered Factory 1320 | -6/Factory | Evolved 2 slots: Propulsion x1, Utility x1 1321 | -6/Factory | Identified exit to Lower Caves 1351 | -6/Factory | Incoming investigation squad redirected 1406 | -6/Factory | Incoming investigation squad redirected 1419 | -6/Factory | Identified exit to Extension 1453 | -6/Factory | Spotted B-75 Beast 1485 | -6/Factory | Lost 5 parts (5n) 1498 | -6/Factory | Entered Extension 1539 | -6/Extension | Rescued a captive Derelict 1539 | -6/Extension | Rescued a captive Derelict 1566 | -6/Extension | Core integrity fell below 50% 1574 | -6/Extension | Core integrity fell below 20% 1580 | -6/Extension | Rescued a captive Derelict 1581 | -6/Extension | Rescued a captive Derelict 1604 | -6/Extension | Rescued a captive Derelict 1606 | -6/Extension | Rescued a captive Derelict 1641 | -6/Extension | Rescued a captive Derelict 1642 | -6/Extension | Rescued a captive Derelict 1713 | -6/Extension | Build established: Hacker-Mutant 2097 | -6/Extension | Spotted B-75 Beast 2101 | -6/Extension | Befriended a Behemoth using the annoying Tinkerer's hack 2105 | -6/Extension | Spotted B-75 Beast 2109 | -6/Extension | Befriended a Behemoth using the annoying Tinkerer's hack 2262 | -6/Extension | Rescued a captive Derelict 2263 | -6/Extension | Rescued a captive Derelict 2426 | -6/Extension | Rescued a captive Derelict 2427 | -6/Extension | Rescued a captive Derelict 2456 | -6/Extension | Rescued a captive Derelict 2461 | -6/Extension | Rescued a captive Derelict 2564 | -6/Extension | Rescued A7 2588 | -6/Extension | Discovered new exit (range 10) 2589 | -6/Extension | Discovered new exit (range 6) 2683 | -6/Extension | Identified exit to Cetus 2739 | -6/Extension | Entered Cetus 2739 | -6/Cetus | Accompanied by 18 allies (A7) 2744 | -6/Cetus | Acquired a Cetus Manufacturing Module code from A7 2750 | -6/Cetus | Spotted Cetus Guard 2750 | -6/Cetus | Spotted Cetus Guard 2750 | -6/Cetus | Spotted Cetus Guard 2750 | -6/Cetus | Spotted Cetus Guard 2767 | -6/Cetus | Allies destroyed Cetus Guard 2769 | -6/Cetus | Allies destroyed Cetus Guard 2771 | -6/Cetus | Allies destroyed Cetus Guard 2771 | -6/Cetus | Allies destroyed Cetus Guard 2798 | -6/Cetus | Started Cetus Manufacturing Module 2823 | -6/Cetus | Manufactured an Enhanced Grunt 2848 | -6/Cetus | Manufactured an Enhanced Grunt 2873 | -6/Cetus | Manufactured an Enhanced Grunt 2898 | -6/Cetus | Manufactured an Enhanced Grunt 2923 | -6/Cetus | Manufactured an Enhanced Grunt 2971 | -6/Cetus | Discovered new exit (range 15) 3031 | -6/Cetus | Spotted Cetus Guard 3032 | -6/Cetus | Spotted Cetus Guard 3039 | -6/Cetus | Spotted Cetus Guard 3043 | -6/Cetus | Spotted Cetus Guard 3050 | -6/Cetus | Allies destroyed Cetus Guard 3052 | -6/Cetus | Allies destroyed Cetus Guard 3056 | -6/Cetus | Allies destroyed Cetus Guard 3057 | -6/Cetus | Rewired Cetus Guard 3058 | -6/Cetus | Discovered new exit (range 16) 3064 | -6/Cetus | Met Revision 17 3067 | -6/Cetus | System corruption reached 10% 3110 | -6/Cetus | Build established: Commander-Mutant 3262 | -6/Cetus | Allies destroyed Cetus Guard 3307 | -6/Cetus | Escorted A7 to Cetus Mainframe 3324 | -6/Cetus | Identified exit to Archives 3343 | -6/Cetus | Identified exit to Factory 3410 | -6/Cetus | Entered Factory 3410 | -5/Factory | Accompanied by 12 allies (A7) 3410 | -5/Factory | Evolved 2 slots: Power x1, Utility x1 3415 | -5/Factory | Received a hacking code to weaken MAIN.C 3453 | -5/Factory | Identified exit to Factory 3539 | -5/Factory | Incoming investigation squad redirected 3649 | -5/Factory | Entered another Factory area 3649 | -4/Factory | Evolved 2 slots: Propulsion x1, Utility x1 3712 | -4/Factory | Incoming investigation squad redirected 3731 | -4/Factory | Identified exit to Upper Caves 3736 | -4/Factory | Identified exit to Research 3830 | -4/Factory | Build established: Scavenger-Sprinter 3854 | -4/Factory | Fabricated Combat Drone Bay? 3875 | -4/Factory | Entered Research 3875 | -3/Research | Evolved 2 slots: Propulsion x1, Utility x1 3933 | -3/Research | Spotted B-86 Titan 3987 | -3/Research | Identified exit to Armory 3987 | -3/Research | Identified exit to Testing 4009 | -3/Research | Spotted B-86 Titan 4011 | -3/Research | Hacking Suite fried by hacking feedback 4017 | -3/Research | Incoming investigation squad redirected 4074 | -3/Research | Spotted B-86 Titan 4124 | -3/Research | Discovered new exit (range 9) 4125 | -3/Research | Search patrols dispatched 4125 | -3/Research | Entered another Research area 4125 | -2/Research | Evolved 2 slots: Propulsion x1, Utility x1 4179 | -2/Research | Identified exit to Quarantine 4201 | -2/Research | Spotted B-90 Cyclops 4237 | -2/Research | Entered Quarantine 4243 | -2/Quarantine | Spotted Alpha 7 4253 | -2/Quarantine | Lost 3 parts (1p2u) 4316 | -2/Quarantine | Lost 7 parts (6n1u) 4382 | -2/Quarantine | Found Alien Artifact 4382 | -2/Quarantine | Identified Core Reset Matrix 4382 | -2/Quarantine | Used Core Reset Matrix 4386 | -2/Quarantine | Detected hypermatrix surge 4386 | -2/Quarantine | Sensed 9 artifacts in vicinity 4391 | -2/Quarantine | Discovered new exit (range 5) 4394 | -2/Quarantine | Found Hpw. Transdimensional Reconstructor 4408 | -2/Quarantine | Found Dimensional Node Initializer 4410 | -2/Quarantine | Found Transdimensional Reconstructor 4412 | -2/Quarantine | Found Transdimensional Reconstructor 4413 | -2/Quarantine | Found Hpw. Transdimensional Reconstructor 4436 | -2/Quarantine | Spotted Fortress 4457 | -2/Quarantine | Discovered new exit (range 5) 4457 | -2/Quarantine | Identified exit to Section 7 4458 | -2/Quarantine | Entered Section 7 4459 | -2/Section 7 | Sensed 24 artifacts in vicinity 4465 | -2/Section 7 | Spotted S7 Guard 4489 | -2/Section 7 | Discovered new exit (range 10) 4490 | -2/Section 7 | Initialized slip node 4494 | -2/Section 7 | Core integrity fell below 50% 4494 | -2/Section 7 | Warped through subspace 4495 | -2/Section 7 | Warped through subspace 4496 | -2/Section 7 | Warped through subspace 4523 | -2/Section 7 | Spotted Alpha 7 4523 | -2/Section 7 | Spotted Alpha 7 4524 | -2/Section 7 | Lost 6 parts (1p4n1u) 4530 | -2/Section 7 | Spotted B-99 Colossus 4570 | -2/Section 7 | Core integrity fell below 20% 4572 | -2/Section 7 | Warped through subspace 4572 | -2/Section 7 | Spotted Executioner 4572 | -2/Section 7 | Spotted Executioner 4594 | -2/Section 7 | Found Transdimensional Reconstructor 4596 | -2/Section 7 | Found Hpw. Transdimensional Reconstructor 4601 | -2/Section 7 | Found Terrabomb 4603 | -2/Section 7 | Lost 4 parts (3n1w) 4644 | -2/Section 7 | Used Terrabomb 4646 | -2/Section 7 | Released all parts (4) 4646 | -2/Section 7 | Integrated with Sigix Exoskeleton 4683 | -2/Section 7 | Found Integrated Reactor 4683 | -2/Section 7 | Installed Integrated Reactor, increased core energy generation (+10) 4684 | -2/Section 7 | Found Integrated Reactor 4684 | -2/Section 7 | Installed Integrated Reactor, increased core energy generation (+10) 4686 | -2/Section 7 | Found Integrated Reactor 4686 | -2/Section 7 | Installed Integrated Reactor, increased core energy generation (+10) 4721 | -2/Section 7 | Warped through subspace 4750 | -2/Section 7 | Spotted Striker 4750 | -2/Section 7 | Spotted Striker 4750 | -2/Section 7 | Spotted Executioner 4751 | -2/Section 7 | Spotted Executioner 4779 | -2/Section 7 | Warped through subspace 4789 | -2/Section 7 | Destroyed by B-99 Colossus with Multirail Last Messages --------------- 04751_ ALERT: Assault forces dispatched. 04751_ Striker springs to life. 04755_ Penetrated by Slug. 04755_ Slug penetrates Armor Plating. 04756_ Penetrated by Slug. 04773_ Slug penetrates Wing Frame. 04777_ System corrupted: FCS attempts to trigger Sigix Sheargun. 04777_ System corrupted: Sigix Sheargun misfires. 04779_ Warped through subspace. 04789_ C-30 ARC bursts open, deploying its payload. 04789_ G-73 Enforcer unfolds itself. 04789_ B-74 Champion unfolds itself. 04789_ G-73 Enforcer unfolds itself. 04789_ E-15 Imp unfolds itself. 04789_ L2 Monitoring Station destroyed. 04789_ B-99 Colossus springs to life. 04789_ Knocked back. 04789_ Construction Supplies damaged. 04789_ Penetrated by Slug. [Achievement: Superachiever] Map ----- +----------------------------------------------------+ | ####" " " " """" " " | | ####" " " "" " | | ####" " """"""" | | ####" """""" " """""" | | ####" """"""""" " """"""" | | ####" """""" | | ####" | | ####" " | | ####" """""" """ | | ####" """"""""" " " | | ####" """""" """"" | | ####" """ """" " " " | | ####" """"" " " " " | | ####" " " " " " """ | | ####" " """""""""" | | ####" C """ " " " " """ | | ####" "" T " " " " | | ####" """" " " " "" | | #### """" "" | | ####" """"C "" """ "" | | ####"" """ " gg | | ####""" " " "" """"""""" | | ####""" """" " """""""""" | | ####""" """ """ " """""""""" | | ## # """""" """ | | / X% """"" | | / "" | | / """"" " | | / C """"" | | ## # """ | | ####"" """" | | ?###""" | | ??##""" " | | ???#"" %" | | ???#" eb """"""" """" | | ???# "" """"""" " ###"""""""""""""""" | | ???# """""""""""" ggg ###"""""""""""""""" | | ??######################BB###//################### | | ?#######################BB### ################### | | ############################# ################### | | ############################# ################### | | ############################# C################### | | ############################# ####"""""" """"" | | ############################# ####"""""" """"" | | ############################# ####"""""" " | | ############################# #### " """"" | | ################## """"" | | ################## """"" | | ################ # ###############" """"" | | ################## ###############"" " | +----------------------------------------------------+ Best States ------------- Heat Dissipation 119 Energy Generation 77 Energy Capacity 575 Matter Stores 300 Matter Capacity 300 Sight Range 18 Terrain Scan Density 610 Armor Coverage 225 Resistance: KI 50 Resistance: TH 50 Resistance: EX 50 Resistance: EM 50 Resistance: I 50 Resistance: S 50 Resistance: P 50 Core Shielding 20 Propulsion Shielding 66 Evasion (%) 69 Launcher Accuracy 40 Core Analysis 6 Recoil Reduction 2 Offensive Hacking 20 Defensive Hacking 24 Authchip Count 1 Item Schematics ----------------- None Robot Schematics ------------------ None Fabricated ------------ C-17 Slicer | x3 | -7/Factory | Preloaded Combat Drone Bay | x1 | -4/Factory Alien Tech Used ----------------- Core Reset Matrix Dimensional Node Initializer High-powered Transdimensional Reconstructor Transdimensional Reconstructor Terrabomb Sigix Exoskeleton Sigix Sheargun Integrated Reactor Achievements -------------- More Power To You Superachiever Challenges ------------ None Game ------ Seed ChromaticCryofiberComputer Manual? 0 Play Time 01:14:39 Cumulative 250.0 hours Start 2023.05.28 @ 22:40:03 End 2023.05.29 @ 00:38:35 Sessions 1 Manual Loads 0 Difficulty Rogue Special Mode None Game No. 744 Rogue 744 Adventurer 0 Explorer 0 Win Type - Total 12 Types 8/0/2/2/0/0/0/0/0 Lore% 87 Gallery% 84 Achievement% 75 Wizard Run 0 Options --------- ASCII 0 Keyboard 0 Movement Numpad Keybinds 0 Fullscreen 1 Font 16/SmallcapsGlow Map View 75x55 Tactical HUD 1 Map Filters NONE Filters NONE Steam 1 RUN: d59aaeb5-35ed-447d-a756-a101b0d75204